bitfinex/quotes_SOLUSD_20241113
["timestamp","ask_amount","ask_price","bid_price","bid_amount"]
[1731516778094,20.0,216.6,216.56,36.71039303]
[1731516778472,4.6155,216.66,216.56,36.71039303]
[1731516778677,23.902374,216.65,216.56,36.71039303]
[1731516779001,44.002374,216.6,216.34,0.1]
[1731516779292,23.776884,216.49,216.42,36.71039303]
[1731516779520,20.0,216.48,216.42,36.71039303]
[1731516779897,36.71039303,216.55,216.44,36.71039303]
[1731516780077,43.776884,216.54,216.46,36.71039303]
[1731516780274,0.12549,216.53,216.44,36.71039303]
[1731516780479,20.0,216.54,216.52,36.71039303]
[1731516780908,63.73869303,216.7,216.52,36.71039303]
[1731516780909,7.10872472,216.61,216.52,36.71039303]
[1731516781079,36.71039303,216.66,216.57,36.71039303]
[1731516781398,0.12549,216.63,216.53,36.71039303]
[1731516781710,36.71039303,216.62,216.53,36.71039303]
[1731516781883,7.11117621,216.65,216.48,48.12159303]
[1731516781884,7.11117621,216.65,216.57,36.71039303]
[1731516782595,11.72707621,216.65,216.57,36.71039303]
[1731516783093,7.11117621,216.65,216.59,36.71039303]
[1731516783298,36.71039303,216.72,216.61,36.71039303]
[1731516783607,7.10155003,216.71,216.63,36.71039303]
[1731516784289,36.71039303,216.7,216.61,36.71039303]
[1731516784804,20.0,216.67,216.61,36.71039303]
[1731516785496,36.71039303,216.76,216.65,36.71039303]
[1731516785685,36.71039303,216.74,216.65,36.71039303]
[1731516786281,7.06583219,216.75,216.71,36.71039303]
[1731516786481,36.71039303,216.82,216.73,36.71039303]
[1731516786709,7.09308826,216.8,216.75,36.71039303]
[1731516786888,36.71039303,216.84,216.75,36.71039303]
[1731516787203,43.8014677,216.84,216.75,36.71039303]
[1731516787581,36.71039303,216.86,216.77,36.71039303]
[1731516788082,36.71039303,216.92,216.85,36.71039303]
[1731516788289,36.71039303,216.92,216.83,36.71039303]
[1731516788582,36.71039303,216.92,216.69,0.2]
[1731516788583,36.71039303,216.9,216.69,0.2]
[1731516788787,7.08912583,216.92,216.83,36.71039303]
[1731516789193,36.71039303,216.97,216.89,36.71039303]
[1731516789710,36.71039303,216.91,216.75,0.1]
[1731516790000,36.71039303,216.97,216.88,36.71039303]
[1731516790403,36.71039303,216.97,216.82,36.71039303]
[1731516790404,36.71039303,216.91,216.82,36.71039303]
[1731516790705,36.71039303,216.89,216.74,0.1]
[1731516790887,36.71039303,216.85,216.76,36.71039303]
[1731516791088,36.71039303,216.87,216.78,36.71039303]
[1731516791507,36.71039303,216.82,216.73,36.71039303]
[1731516791800,56.71039303,216.84,216.75,36.71039303]
[1731516792008,36.71039303,216.92,216.77,36.71039303]
[1731516792009,20.0,216.85,216.77,36.71039303]
[1731516792183,23.776884,216.84,216.77,36.71039303]
[1731516792383,36.71039303,216.88,216.79,36.71039303]
[1731516792584,36.71039303,216.82,216.68,10.5335]
[1731516792785,20.0,216.79,216.7,36.71039303]
[1731516793095,20.0,216.86,216.78,36.71039303]
[1731516793292,20.0,216.86,216.7,36.71039303]
[1731516793495,20.0,216.84,216.78,36.71039303]
[1731516793693,41.32049303,216.92,216.83,36.71039303]
[1731516793897,36.71039303,216.84,216.75,36.71039303]
[1731516794212,36.44506424,216.85,216.68,10.5335]
[1731516794398,7.08437305,216.84,216.68,10.5335]
[1731516794796,20.0,216.83,216.68,10.5335]
[1731516795114,23.776884,216.82,216.68,10.5335]
[1731516795809,23.776884,216.88,216.7,0.1]
[1731516795995,36.44506424,216.88,216.69,0.1]
[1731516796198,4.6095,216.94,216.68,10.5335]
[1731516796199,36.44506424,216.84,216.68,10.5335]
[1731516796597,7.13237373,216.87,216.74,0.1]
[1731516796912,7.12178946,216.91,216.74,0.1]
[1731516797098,36.44506424,216.9,216.73,0.1]
[1731516797299,36.44506424,216.9,216.73,0.2]
[1731516797499,4.6106,216.89,216.71,0.1]
[1731516797700,4.6106,216.89,216.72,0.1]
[1731516797907,7.12178946,216.91,216.74,0.1]
[1731516798214,7.12178946,216.91,216.78,0.2]
[1731516798394,7.12178946,216.91,216.78,0.1]
[1731516798712,7.12178946,216.91,216.78,0.2]
[1731516799209,7.12178946,216.91,216.78,0.1]
[1731516799598,7.12178946,216.91,216.78,0.2]
[1731516799900,7.12178946,216.91,216.8,0.1]
[1731516800212,7.12178946,216.91,216.8,0.2]
[1731516800393,7.12178946,216.91,216.82,0.2]
[1731516800598,7.12178946,216.91,216.83,11.1301]
[1731516800999,43.5668537,216.91,216.76,26.1831]
[1731516801210,36.44506424,216.89,216.76,37.3132]
[1731516801896,43.776884,216.88,216.76,37.3132]
[1731516802102,36.44506424,216.85,216.76,11.1301]
[1731516802516,36.44506424,216.87,216.76,11.1301]
[1731516802721,20.0,216.86,216.76,11.1301]
[1731516803017,60.22194824,216.85,216.76,11.1301]
[1731516803215,36.44506424,216.81,216.66,26.2831]
[1731516803396,36.44506424,216.83,216.67,11.1301]
[1731516803599,20.0,216.84,216.69,0.1]
[1731516803796,20.0,216.84,216.67,11.1301]
[1731516803797,36.44506424,216.81,216.67,11.1301]
[1731516804214,36.44506424,216.73,216.67,11.09502511]
[1731516804403,20.0,216.7,216.57,26.1831]
[1731516804806,23.776884,216.69,216.57,26.1831]
[1731516805007,36.44506424,216.67,216.5,0.1]
[1731516805208,36.44506424,216.67,216.49,0.1]
[1731516805517,36.44506424,216.63,216.48,26.8175]
[1731516805720,36.44506424,216.65,216.51,0.1]
[1731516805921,23.776884,216.64,216.51,0.1]
[1731516806219,36.44506424,216.67,216.51,0.1]
[1731516806419,20.0,216.66,216.51,0.1]
[1731516807024,36.44506424,216.69,216.51,0.1]
[1731516807198,36.44506424,216.69,216.52,0.22549]
[1731516807404,43.52702035,216.69,216.53,0.1]
[1731516807621,7.08195611,216.69,216.56,0.2]
[1731516807917,36.44506424,216.72,216.56,0.1]
[1731516808213,36.44506424,216.57,216.41,0.1]
[1731516808415,36.44506424,216.55,216.4,11.781]
[1731516808599,36.44506424,216.55,216.4,11.681]
[1731516808923,36.44506424,216.55,216.43,0.1]
[1731516809219,23.776884,216.56,216.43,0.1]
[1731516809600,36.44506424,216.53,216.4,11.681]
[1731516810305,36.44506424,216.64,216.48,0.1]
[1731516810521,36.44506424,216.66,216.48,0.22549]
[1731516810911,36.44506424,216.66,216.49,0.1]
[1731516811218,36.44506424,216.7,216.52,0.2]
[1731516811715,0.1,216.66,216.41,19.7]
[1731516811918,0.1,216.66,216.42,23.776884]
[1731516812099,0.1,216.65,216.42,23.776884]
[1731516812510,0.1,216.66,216.42,23.776884]
[1731516813102,0.2,216.66,216.42,23.776884]
[1731516813806,0.1,216.66,216.43,20.0]
[1731516814009,0.1,216.65,216.45,20.0]
[1731516814209,0.1,216.67,216.47,20.0]
[1731516814717,23.776884,216.69,216.42,23.776884]
[1731516814718,0.1,216.59,216.42,23.776884]
[1731516814920,0.1,216.54,216.4,11.681]
[1731516815098,0.1,216.5,216.4,11.681]
[1731516815301,0.1,216.5,216.3,5.68856774]
[1731516815302,0.2,216.47,216.24,0.4453287]
[1731516815507,0.1,216.41,216.24,31.3119287]
[1731516815730,0.1,216.43,216.25,11.8228]
[1731516817051,0.1,216.43,216.26,0.12549]
[1731516817402,0.1,216.45,216.26,0.12549]
[1731516817608,20.1,216.47,216.26,20.12549]
[1731516817820,0.1,216.44,216.26,0.12549]
[1731516818119,0.1,216.45,216.26,0.12549]
[1731516818633,36.64506424,216.48,216.26,0.12549]
[1731516818808,36.54506424,216.52,216.26,23.902374]
[1731516819008,36.54506424,216.57,216.3,23.902374]
[1731516819323,34.5134,216.67,216.27,0.92416075]
[1731516819324,36.54506424,216.59,216.36,0.12549]
[1731516819507,36.44506424,216.61,216.38,23.776884]
[1731516819706,0.2,216.59,216.4,30.1387]
[1731516819907,0.2,216.59,216.41,20.0]
[1731516820521,0.1,216.61,216.41,20.0]
[1731516820724,0.1,216.61,216.42,23.776884]
[1731516820926,0.1,216.57,216.4,30.1387]
[1731516821130,0.1,216.52,216.4,30.1387]
[1731516821709,0.1,216.54,216.41,0.12549]
[1731516821912,0.1,216.58,216.41,0.12549]
[1731516822126,0.1,216.65,216.41,20.12549]
[1731516822325,0.1,216.66,216.42,23.776884]
[1731516822533,0.1,216.69,216.47,20.12549]
[1731516822709,0.1,216.71,216.49,20.12549]
[1731516822909,0.2,216.67,216.49,20.12549]
[1731516823110,0.1,216.69,216.49,20.12549]
[1731516823340,0.1,216.72,216.53,0.12549]
[1731516823513,36.54506424,216.72,216.53,0.12549]
[1731516823713,0.1,216.72,216.53,0.12549]
[1731516824216,0.1,216.69,216.53,0.12549]
[1731516824417,0.1,216.73,216.53,20.12549]
[1731516824636,0.1,216.76,216.55,20.12549]
[1731516824827,0.1,216.74,216.55,20.12549]
[1731516825534,0.2,216.74,216.55,20.12549]
[1731516825735,0.1,216.77,216.55,20.12549]
[1731516825943,0.1,216.74,216.55,20.12549]
[1731516826434,20.1,216.78,216.55,20.12549]
[1731516826620,0.1,216.74,216.55,20.12549]
[1731516827124,36.64506424,216.74,216.55,20.12549]
[1731516827326,0.1,216.7,216.54,29.3753]
[1731516827540,0.1,216.71,216.54,29.3753]
[1731516827838,0.1,216.75,216.55,20.12549]
[1731516828016,0.1,216.74,216.55,20.12549]
[1731516828213,0.1,216.78,216.55,20.12549]
[1731516828643,0.1,216.8,216.55,20.12549]
[1731516828820,0.2,216.77,216.55,20.12549]
[1731516829132,0.1,216.73,216.55,20.12549]
[1731516829343,0.1,216.71,216.55,0.12549]
[1731516829521,0.2,216.71,216.55,0.12549]
[1731516829928,0.2,216.71,216.54,29.3753]
[1731516830140,0.1,216.71,216.54,29.3753]
[1731516830312,0.1,216.71,216.55,0.12549]
[1731516830520,0.2,216.71,216.55,0.12549]
[1731516830826,0.1,216.75,216.55,20.12549]
[1731516831027,0.2,216.75,216.55,20.12549]
[1731516831220,0.1,216.73,216.55,20.12549]
[1731516831419,36.54506424,216.76,216.55,20.12549]
[1731516831638,0.1,216.74,216.55,20.12549]
[1731516831838,0.1,216.75,216.55,0.12549]
[1731516832076,0.1,216.66,216.54,29.3753]
[1731516832538,0.1,216.56,216.45,31.1181]
[1731516832922,0.2,216.58,216.45,31.1181]
[1731516833118,0.2,216.68,216.46,0.12549]
[1731516833433,0.1,216.68,216.46,0.12549]
[1731516833633,36.54506424,216.72,216.46,0.12549]
[1731516833821,0.1,216.68,216.46,43.902374]
[1731516834022,0.1,216.68,216.46,49.73055763]
[1731516834239,0.1,216.64,216.45,31.1181]
[1731516834444,0.1,216.67,216.45,31.1181]
[1731516834745,0.1,216.67,216.46,0.12549]
[1731516834942,0.1,216.65,216.46,0.12549]
[1731516835124,0.2,216.67,216.46,0.12549]
[1731516835520,0.1,216.65,216.46,20.12549]
[1731516835728,0.1,216.67,216.46,20.12549]
[1731516835729,0.2,216.67,216.46,20.12549]
[1731516836039,0.1,216.65,216.46,20.12549]
[1731516836524,0.1,216.67,216.46,20.12549]
[1731516836839,0.2,216.68,216.46,20.12549]
[1731516837034,0.1,216.72,216.51,11.9496]
[1731516837340,0.1,216.73,216.54,0.12549]
[1731516837528,0.1,216.73,216.54,43.902374]
[1731516837729,0.2,216.76,216.54,43.902374]
[1731516837933,0.1,216.74,216.54,20.12549]
[1731516838144,0.2,216.71,216.54,20.12549]
[1731516839941,0.1,216.69,216.54,20.12549]
[1731516840149,0.1,216.66,216.53,29.8156]
[1731516840322,36.44506424,216.69,216.53,29.8156]
[1731516840323,0.1,216.65,216.53,29.8156]
[1731516840526,0.1,216.63,216.53,29.8156]
[1731516840726,0.2,216.63,216.53,29.8156]
[1731516840927,0.1,216.55,216.51,11.9496]
[1731516841123,0.1,216.66,216.51,11.9496]
[1731516841333,0.1,216.67,216.51,11.9496]
[1731516841631,0.1,216.61,216.51,11.9496]
[1731516842045,0.1,216.63,216.51,11.9496]
[1731516842249,0.1,216.61,216.51,11.9496]
[1731516842426,0.1,216.63,216.51,11.9496]
[1731516843052,0.1,216.54,216.45,30.5137]
[1731516843523,0.1,216.52,216.44,11.8357]
[1731516844145,0.1,216.53,216.44,11.8357]
[1731516844669,36.64506424,216.59,216.44,11.8357]
[1731516844950,0.1,216.59,216.44,11.8357]
[1731516845153,0.1,216.64,216.45,0.12549]
[1731516845356,0.1,216.68,216.45,0.12549]
[1731516845645,0.1,216.73,216.47,20.12549]
[1731516846027,0.1,216.71,216.5,0.12549]
[1731516846349,36.44506424,216.76,216.52,43.776884]
[1731516846350,0.1,216.73,216.52,43.776884]
[1731516846859,0.1,216.76,216.52,43.776884]
[1731516847153,30.8607,216.86,216.56,43.776884]
[1731516847154,0.1,216.81,216.56,43.776884]
[1731516847654,0.2,216.72,216.55,11.3783]
[1731516847823,0.1,216.76,216.55,11.3783]
[1731516848150,18.549359,216.84,216.56,23.902374]
[1731516848338,18.449359,216.84,216.6,23.902374]
[1731516848538,0.1,216.83,216.6,23.902374]
[1731516848852,0.1,216.85,216.6,23.902374]
[1731516849041,0.1,216.88,216.64,23.902374]
[1731516849245,0.1,216.88,216.57,31.1366]
[1731516849246,0.1,216.87,216.72,0.12549]
[1731516849428,0.1,216.89,216.72,0.12549]
[1731516850126,0.1,216.95,216.75,20.0]
[1731516850440,0.1,216.93,216.75,20.0]
[1731516850746,0.2,216.95,216.72,20.0]
[1731516850948,0.2,216.95,216.75,0.12549]
[1731516851251,0.2,216.97,216.75,23.776884]
[1731516851547,0.2,216.97,216.76,20.12549]
[1731516852252,0.1,216.94,216.72,20.12549]
[1731516852437,0.1,216.94,216.74,20.12549]
[1731516853960,0.1,216.93,216.74,20.0]
[1731516854433,0.1,216.94,216.75,0.12549]
[1731516854828,0.1,216.97,216.77,23.902374]
[1731516855030,0.2,216.95,216.77,0.12549]
[1731516855231,0.1,216.95,216.77,0.12549]
[1731516855528,0.4453287,216.99,216.77,0.12549]
[1731516855745,0.4453287,216.99,216.84,20.0]
[1731516855944,0.4453287,216.99,216.82,20.0]
[1731516856248,0.4453287,216.99,216.78,40.5342]
[1731516856249,0.4453287,216.99,216.85,23.902374]
[1731516856939,0.4453287,216.99,216.85,0.12549]
[1731516857261,0.1,216.94,216.78,40.5342]
[1731516857756,36.54506424,216.96,216.78,40.5342]
[1731516857757,0.2,216.96,216.79,0.12549]
[1731516857954,0.4453287,216.99,216.79,0.12549]
[1731516858157,0.1,216.97,216.79,0.12549]
[1731516858346,0.4453287,216.99,216.79,20.12549]
[1731516858528,0.1,216.98,216.79,20.12549]
[1731516858951,0.4453287,216.99,216.81,20.12549]
[1731516859530,0.5453287,216.99,216.81,20.12549]
[1731516860533,0.1,216.96,216.78,40.5342]
[1731516860731,0.4453287,216.99,216.81,20.0]
[1731516860957,0.1,217.13,216.85,31.5443]
[1731516861251,0.2,217.11,216.86,31.25480121]
[1731516861450,0.1,217.11,216.89,0.12549]
[1731516861649,0.1,217.09,216.89,0.12549]
[1731516861845,0.1,217.04,216.89,0.12549]
[1731516862645,0.1,217.04,216.87,11.5443]
[1731516862844,0.1,216.99,216.87,11.5443]
[1731516863141,0.2,216.99,216.87,11.5443]
[1731516863341,0.2,216.99,216.88,0.12549]
[1731516863541,0.2,216.99,216.87,11.5443]
[1731516863842,0.1,216.96,216.87,11.5443]
[1731516864435,0.1,216.98,216.87,11.5443]
[1731516864635,0.1,217.0,216.88,0.12549]
[1731516865042,0.1,217.04,216.88,0.12549]
[1731516865547,0.1,217.02,216.88,0.12549]
[1731516865852,0.1,217.01,216.88,0.12549]
[1731516866053,0.1,217.0,216.88,0.12549]
[1731516866860,0.1,216.98,216.87,11.5443]
[1731516867166,0.1,216.96,216.87,11.5443]
[1731516867339,0.1,217.02,216.87,11.5443]
[1731516867540,0.1,217.01,216.87,11.5443]
[1731516867743,0.1,216.98,216.87,11.5443]
[1731516868163,0.1,216.97,216.87,11.5443]
[1731516868365,0.2,216.97,216.87,11.5443]
[1731516868856,8.9280512,217.62,216.87,11.5443]
[1731516868857,0.1,216.92,216.87,11.5443]
[1731516869063,0.1,216.88,216.77,11.4829]
[1731516869240,0.1,216.87,216.77,11.4829]
[1731516869440,0.1,216.86,216.77,11.4829]
[1731516869663,0.1,216.88,216.77,11.4829]
[1731516869963,0.1,216.89,216.77,11.4829]
[1731516870658,0.1,216.85,216.77,11.4829]
[1731516871659,0.1,216.85,216.58,0.92235487]
[1731516871660,0.2,216.8,216.59,10.9779]
[1731516871847,0.1,216.76,216.61,18.441589]
[1731516872051,0.1,216.74,216.59,10.9779]
[1731516872641,20.0,216.8,216.59,10.9779]
[1731516872642,0.1,216.71,216.59,10.9779]
[1731516873048,0.1,216.73,216.59,10.9779]
[1731516873264,0.1,216.75,216.59,10.9779]
[1731516873564,0.1,216.72,216.6,0.9227931]
[1731516873766,0.1,216.7,216.55,11.537]
[1731516874268,0.1,216.68,216.55,11.537]
[1731516874567,0.1,216.62,216.55,11.537]
[1731516874747,0.1,216.62,216.48,0.12549]
[1731516874947,0.1,216.62,216.45,0.4453287]
[1731516875245,0.1,216.62,216.48,0.12549]
[1731516875449,0.2,216.6,216.47,11.537]
[1731516875644,0.1,216.58,216.47,11.537]
[1731516876258,0.2,216.54,216.45,0.4453287]
[1731516876444,0.1,216.54,216.45,0.4453287]
[1731516876644,0.2,216.56,216.45,0.4453287]
[1731516876962,0.1,216.58,216.45,0.4453287]
[1731516877270,0.1,216.59,216.46,0.12549]
[1731516877443,0.1,216.61,216.46,0.12549]
[1731516877867,0.1,216.62,216.46,0.12549]
[1731516878069,0.1,216.61,216.46,0.12549]
[1731516878266,47.56186424,216.68,216.47,0.923432]
[1731516878267,0.1,216.65,216.47,0.923432]
[1731516878450,0.1,216.63,216.46,20.0]
[1731516878651,0.1,216.63,216.49,0.12549]
[1731516878870,0.1,216.62,216.49,0.12549]
[1731516879073,36.44506424,216.72,216.49,0.12549]
[1731516879074,0.1,216.59,216.49,0.12549]
[1731516879251,0.1,216.57,216.45,0.4453287]
[1731516879458,0.1,216.52,216.45,0.4453287]
[1731516879749,0.1,216.53,216.45,0.4453287]
[1731516879952,0.1,216.54,216.45,0.4453287]
[1731516880154,0.1,216.51,216.45,0.4453287]
[1731516880548,20.0,216.59,216.45,0.4453287]
[1731516880549,0.1,216.47,216.45,0.4453287]
[1731516880748,0.2,216.49,216.45,0.4453287]
[1731516880960,0.1,216.47,216.45,0.4453287]
[1731516881164,0.2,216.46,216.45,0.4453287]
[1731516882090,0.2,216.46,216.25,16.74387405]
[1731516882091,0.1,216.34,216.25,11.0726]
[1731516882253,0.1,216.33,216.25,11.0726]
[1731516882564,0.1,216.33,216.18,11.0726]
[1731516882772,0.1,216.3,216.18,11.0726]
[1731516882954,20.1,216.41,216.18,11.0726]
[1731516882955,0.1,216.28,216.18,11.0726]
[1731516883376,0.1,216.26,216.18,11.0726]
[1731516883757,0.2,216.28,216.08,5.74378506]
[1731516884176,0.1,216.28,216.1,10.6089]
[1731516884377,0.2,216.31,216.11,18.483627]
[1731516884672,0.1,216.31,216.11,18.483627]
[1731516885379,0.1,216.37,216.25,0.12549]
[1731516885554,0.1,216.34,216.16,20.0]
[1731516885755,0.1,216.31,216.11,18.483627]
[1731516885965,0.1,216.29,216.12,20.0]
[1731516886659,0.1,216.28,216.11,18.483627]
[1731516886857,0.1,216.27,216.1,10.6089]
[1731516887253,0.1,216.25,216.1,10.6089]
[1731516890473,0.1,216.25,216.11,20.0]
[1731516890664,0.1,216.25,216.1,10.6089]
[1731516890865,0.1,216.26,216.1,10.6089]
[1731516891053,0.1,216.25,216.1,10.6089]
[1731516891258,0.1,216.26,216.1,10.6089]
[1731516892064,0.1,216.25,216.1,10.6089]
[1731516894979,0.1,216.14,216.03,10.5066]
[1731516895481,0.1,216.13,216.03,10.5066]
[1731516896271,0.1,216.13,216.04,0.12549]
[1731516896564,0.1,216.12,216.03,10.5066]
[1731516896973,0.1,216.13,216.04,0.12549]
[1731516897186,0.1,216.15,216.04,0.12549]
[1731516897565,0.2,216.15,216.04,0.12549]
[1731516898082,0.1,216.15,216.04,0.12549]
[1731516898384,0.2,216.17,216.04,20.12549]
[1731516898758,0.1,216.16,216.04,20.12549]
[1731516899173,0.1,216.17,216.04,20.12549]
[1731516899371,0.1,216.19,216.04,20.12549]
[1731516899568,0.1,216.19,216.03,10.5066]
[1731516899569,0.1,216.26,216.06,20.12549]
[1731516899883,0.1,216.26,216.03,10.5066]
[1731516899884,0.1,216.24,216.1,20.12549]
[1731516900066,0.2,216.21,216.1,0.12549]
[1731516900387,0.1,216.18,216.05,0.12549]
[1731516900567,0.2,216.21,216.07,0.12549]
[1731516900896,0.1,216.21,216.07,23.902374]
[1731516901066,0.1,216.25,216.09,0.12549]
[1731516901369,26.697,216.3,216.13,0.12549]
[1731516901370,0.1,216.22,216.13,0.12549]
[1731516901574,0.1,216.21,216.13,0.12549]
[1731516901966,0.1,216.21,216.07,0.12549]
[1731516902161,0.1,216.2,216.09,0.12549]
[1731516902377,0.1,216.19,216.09,0.12549]
[1731516902579,0.2,216.22,216.08,20.12549]
[1731516902880,0.2,216.19,216.03,10.5066]
[1731516903064,0.1,216.17,216.03,10.5066]
[1731516903584,0.1,216.26,216.04,1.05070903]
[1731516903883,0.1,216.33,216.06,70.0]
[1731516904186,0.1,216.28,216.08,0.12549]
[1731516904384,0.2,216.35,216.12,23.902374]
[1731516904593,0.1,216.34,216.16,0.12549]
[1731516904782,0.1,216.32,216.18,20.12549]
[1731516904974,0.1,216.3,216.18,0.12549]
[1731516905286,0.1,216.3,216.03,23.82643216]
[1731516905287,0.1,216.25,216.13,20.0]
[1731516905782,0.1,216.23,216.14,0.12549]
[1731516906094,0.1,216.22,216.14,0.12549]
[1731516906265,0.1,216.22,216.12,0.12549]
[1731516907075,0.1,216.2,216.03,10.6532]
[1731516907270,0.1,216.18,216.03,10.6532]
[1731516907770,0.1,216.19,216.03,10.6532]
[1731516907771,0.1,216.19,216.04,0.12549]
[1731516907974,0.1,216.19,216.03,10.6532]
[1731516908184,0.1,216.22,216.03,10.6532]
[1731516908185,0.1,216.22,216.05,0.12549]
[1731516908669,0.1,216.22,216.07,0.12549]
[1731516908869,0.1,216.21,216.07,0.12549]
[1731516909085,0.1,216.21,216.05,0.12549]
[1731516909880,0.1,216.22,216.05,0.12549]
[1731516910077,0.1,216.21,216.05,0.12549]
[1731516910592,0.1,216.22,216.05,0.12549]
[1731516910986,0.1,216.21,216.05,0.12549]
[1731516911172,0.1,216.22,216.05,0.12549]
[1731516911574,0.1,216.21,216.05,0.12549]
[1731516911867,0.2,216.22,216.05,0.12549]
[1731516912073,0.1,216.22,216.05,0.12549]
[1731516912378,0.2,216.22,216.05,0.12549]
[1731516912703,0.1,216.18,216.03,10.6532]
[1731516912885,0.1,216.17,216.03,10.6532]
[1731516913219,0.1,216.14,216.03,10.6532]
[1731516913580,0.1,216.14,216.04,0.12549]
[1731516913797,0.1,216.14,216.02,0.4453287]
[1731516914630,0.1,216.17,216.02,0.4453287]
[1731516914786,0.1,216.14,216.03,0.12549]
[1731516915097,0.1,216.17,216.03,0.12549]
[1731516915392,0.1,216.16,216.03,0.12549]
[1731516915605,0.1,216.14,216.03,0.12549]
[1731516916093,0.1,216.16,216.03,0.12549]
[1731516916401,0.1,216.14,216.03,0.12549]
[1731516916776,0.1,216.16,216.03,0.12549]
[1731516916978,0.1,216.14,216.03,0.12549]
[1731516917388,0.1,216.17,216.03,0.12549]
[1731516917594,0.1,216.14,216.03,0.12549]
[1731516918093,0.1,216.17,216.03,0.12549]
[1731516918280,0.1,216.16,216.03,0.12549]
[1731516918593,0.1,216.14,216.03,0.12549]
[1731516918797,0.1,216.19,216.03,0.12549]
[1731516918973,0.2,216.19,216.03,0.12549]
[1731516919292,0.1,216.2,216.03,1.05061226]
[1731516919496,0.1,216.17,216.03,0.12549]
[1731516919694,0.2,216.17,216.03,0.12549]
[1731516920080,0.1,216.15,216.02,20.4453287]
[1731516920385,0.2,216.19,216.02,0.4453287]
[1731516920576,23.976884,216.21,216.03,0.12549]
[1731516920777,27.6934,216.22,216.05,0.12549]
[1731516920972,0.1,216.25,216.07,0.12549]
[1731516921176,0.1,216.23,216.09,0.12549]
[1731516921399,0.1,216.25,216.11,0.12549]
[1731516921583,0.1,216.23,216.11,0.12549]
[1731516921898,0.1,216.25,216.11,0.12549]
[1731516922079,0.2,216.27,216.11,0.12549]
[1731516922405,28.319,216.29,216.12,0.12549]
[1731516922595,28.419,216.29,216.12,20.12549]
[1731516922792,0.1,216.25,216.12,20.12549]
[1731516923106,28.319,216.29,216.13,0.92488211]
[1731516923397,0.1,216.27,216.14,0.12549]
[1731516923781,0.1,216.27,216.12,20.0]
[1731516923782,0.1,216.26,216.12,20.0]
[1731516923980,28.319,216.29,216.02,70.4453287]
[1731516923981,0.2,216.21,216.05,10.989]
[1731516924183,0.2,216.21,216.05,16.83906562]
[1731516924876,0.1,216.2,216.06,0.12549]
[1731516925398,0.1,216.2,216.06,20.12549]
[1731516925585,0.1,216.19,216.06,0.12549]
[1731516925787,0.1,216.2,216.06,0.12549]
[1731516926094,0.1,216.19,216.06,0.12549]
[1731516926310,0.1,216.18,216.06,0.12549]
[1731516926808,0.1,216.12,216.02,0.4453287]
[1731516926980,0.06270782,216.1,216.02,0.4453287]
[1731516927181,0.06270782,216.07,216.02,0.4453287]
[1731516927392,0.06270782,216.05,216.02,0.4453287]
[1731516928878,0.06270782,216.08,216.02,0.4453287]
[1731516929284,0.06270782,216.1,216.03,0.12549]